[Event "*** Titled Tuesday Blitz"]
[Site "Chess.com"]
[Date "2021.02.16"]
[Round "4"]
[White "AntonovaNadezhda"]
[Black "Tenamu"]
[Result "0-1"]
[WhiteElo "2156"]
[BlackElo "2412"]
[TimeControl "180+1"]
[EndTime "10:41:41 PST"]
[Termination "Tenamu won on time"]

1. b3 {[%clk 0:02:49.7]} 1... e5 {[%clk 0:02:42.6]} 2. Bb2 {[%clk 0:02:49.1]}
2... Nc6 {[%clk 0:02:42.2]} 3. e3 {[%clk 0:02:44.6]} 3... f5 {[%clk 0:02:38.6]}
4. Bb5 {[%clk 0:02:39.1]} 4... d6 {[%clk 0:02:34.8]} 5. d4 {[%clk 0:02:35.6]}
5... exd4 {[%clk 0:02:33.1]} 6. Bxd4 {[%clk 0:02:31.5]} 6... a6 {[%clk
0:02:32.1]} 7. Bxc6+ {[%clk 0:02:30.3]} 7... bxc6 {[%clk 0:02:33]} 8. Nf3 {[%clk
0:02:27.9]} 8... Nf6 {[%clk 0:02:31.7]} 9. O-O {[%clk 0:02:25.7]} 9... Be7
{[%clk 0:02:31.2]} 10. c4 {[%clk 0:02:24.3]} 10... O-O {[%clk 0:02:30.2]} 11.
Bb2 {[%clk 0:02:17.4]} 11... c5 {[%clk 0:02:24.6]} 12. Nc3 {[%clk 0:02:03.1]}
12... Bb7 {[%clk 0:02:22.4]} 13. Nd5 {[%clk 0:02:02.7]} 13... Nxd5 {[%clk
0:02:22.6]} 14. cxd5 {[%clk 0:02:01.4]} 14... Bf6 {[%clk 0:02:23.3]} 15. Rb1
{[%clk 0:01:53.3]} 15... Bxb2 {[%clk 0:02:21.7]} 16. Rxb2 {[%clk 0:01:53.3]}
16... Qf6 {[%clk 0:02:21.7]} 17. Rd2 {[%clk 0:01:52.5]} 17... g5 {[%clk
0:02:20.8]} 18. Rd3 {[%clk 0:01:38.5]} 18... Rae8 {[%clk 0:02:19]} 19. Nd2
{[%clk 0:01:36]} 19... g4 {[%clk 0:02:11.5]} 20. Nc4 {[%clk 0:01:29.4]} 20... h5
{[%clk 0:02:03.5]} 21. Qd2 {[%clk 0:01:11]} 21... h4 {[%clk 0:01:55.5]} 22. Qa5
{[%clk 0:01:04.7]} 22... Re7 {[%clk 0:01:51.4]} 23. Rfd1 {[%clk 0:01:02.4]}
23... f4 {[%clk 0:01:47.1]} 24. exf4 {[%clk 0:00:56.5]} 24... Qxf4 {[%clk
0:01:44.1]} 25. Qd2 {[%clk 0:00:51.2]} 25... Qxd2 {[%clk 0:01:24]} 26. R3xd2
{[%clk 0:00:50.1]} 26... Rf4 {[%clk 0:01:21.2]} 27. g3 {[%clk 0:00:45.2]} 27...
hxg3 {[%clk 0:01:20.9]} 28. hxg3 {[%clk 0:00:44.6]} 28... Rf5 {[%clk 0:01:16.1]}
29. Ne3 {[%clk 0:00:41.9]} 29... Rg5 {[%clk 0:01:12.6]} 30. Kg2 {[%clk
0:00:37.6]} 30... c6 {[%clk 0:01:09.3]} 31. Kf1 {[%clk 0:00:22.5]} 31... cxd5
{[%clk 0:00:58.5]} 32. Nxd5 {[%clk 0:00:21.2]} 32... Ree5 {[%clk 0:00:50]} 33.
Nf4 {[%clk 0:00:19.6]} 33... d5 {[%clk 0:00:49.7]} 34. Re1 {[%clk 0:00:15.7]}
34... d4 {[%clk 0:00:47.9]} 35. Rxe5 {[%clk 0:00:14.2]} 35... Rxe5 {[%clk
0:00:48.8]} 36. Nd3 {[%clk 0:00:12.8]} 36... Rh5 {[%clk 0:00:45.7]} 37. Ke2
{[%clk 0:00:10.8]} 37... Bf3+ {[%clk 0:00:44.4]} 0-1

[Event "*** Titled Tuesday Blitz"]
[Site "Chess.com"]
[Date "2021.02.16"]
[Round "4"]
[White "GM_LOADING"]
[Black "josiwales"]
[Result "1-0"]
[WhiteElo "2484"]
[BlackElo "2623"]
[TimeControl "180+1"]
[EndTime "10:41:43 PST"]
[Termination "GM_LOADING won by resignation"]

1. d4 {[%clk 0:03:00.9]} 1... d5 {[%clk 0:02:58.7]} 2. Nf3 {[%clk 0:02:59.9]}
2... Nf6 {[%clk 0:02:58.8]} 3. c4 {[%clk 0:02:58.2]} 3... c6 {[%clk 0:02:59.2]}
4. Nc3 {[%clk 0:02:56.9]} 4... dxc4 {[%clk 0:02:59.7]} 5. e4 {[%clk 0:02:57.1]}
5... b5 {[%clk 0:02:59.1]} 6. e5 {[%clk 0:02:42.2]} 6... Nd5 {[%clk 0:02:57.8]}
7. Ne4 {[%clk 0:02:42.7]} 7... e6 {[%clk 0:02:54.2]} 8. Be2 {[%clk 0:02:40]}
8... Bb4+ {[%clk 0:02:53.4]} 9. Bd2 {[%clk 0:02:40.3]} 9... O-O {[%clk 0:02:52]}
10. O-O {[%clk 0:02:39.8]} 10... a5 {[%clk 0:02:50]} 11. a4 {[%clk 0:02:27.9]}
11... Na6 {[%clk 0:02:46.9]} 12. Qc2 {[%clk 0:02:21]} 12... Ra7 {[%clk
0:02:33.8]} 13. Neg5 {[%clk 0:01:57]} 13... f5 {[%clk 0:02:29.1]} 14. exf6
{[%clk 0:01:54.8]} 14... gxf6 {[%clk 0:02:29.3]} 15. Ne4 {[%clk 0:01:52]} 15...
e5 {[%clk 0:02:18.8]} 16. Rad1 {[%clk 0:01:30.9]} 16... Bf5 {[%clk 0:02:16.9]}
17. Nh4 {[%clk 0:01:29.9]} 17... Qc8 {[%clk 0:01:53.8]} 18. axb5 {[%clk
0:01:13.5]} 18... cxb5 {[%clk 0:01:48.1]} 19. Bh6 {[%clk 0:01:10.6]} 19... Rd8
{[%clk 0:01:14.1]} 20. dxe5 {[%clk 0:00:57.7]} 20... Bxe4 {[%clk 0:00:54.5]} 21.
Qxe4 {[%clk 0:00:54.7]} 21... Nc5 {[%clk 0:00:55.2]} 22. Qf3 {[%clk 0:00:54.6]}
22... Nd3 {[%clk 0:00:51.3]} 23. Bxd3 {[%clk 0:00:49.7]} 23... cxd3 {[%clk
0:00:52.2]} 24. Rxd3 {[%clk 0:00:48.3]} 24... Qc4 {[%clk 0:00:48.3]} 25. Nf5
{[%clk 0:00:24.7]} 25... Bf8 {[%clk 0:00:39.4]} 26. Bxf8 {[%clk 0:00:23.1]}
26... Kxf8 {[%clk 0:00:38.5]} 27. Rfd1 {[%clk 0:00:22.9]} 27... a4 {[%clk
0:00:16.4]} 28. Nd6 {[%clk 0:00:18.9]} 28... Rxd6 {[%clk 0:00:15.3]} 29. exd6
{[%clk 0:00:19.8]} 29... Nb4 {[%clk 0:00:06.3]} 30. d7 {[%clk 0:00:15.3]} 1-0

[Event "*** Titled Tuesday Blitz"]
[Site "Chess.com"]
[Date "2021.02.16"]
[Round "4"]
[White "Alexsur1981"]
[Black "IMRosen"]
[Result "0-1"]
[WhiteElo "2837"]
[BlackElo "2626"]
[TimeControl "180+1"]
[EndTime "10:41:44 PST"]
[Termination "IMRosen won by checkmate"]

1. e4 {[%clk 0:03:00.9]} 1... e5 {[%clk 0:02:59.8]} 2. f4 {[%clk 0:03:00.4]}
2... d5 {[%clk 0:02:59.7]} 3. exd5 {[%clk 0:03:00.2]} 3... e4 {[%clk 0:03:00.6]}
4. d3 {[%clk 0:03:00.1]} 4... Nf6 {[%clk 0:03:01]} 5. dxe4 {[%clk 0:03:00.2]}
5... Nxe4 {[%clk 0:03:00.3]} 6. Nf3 {[%clk 0:03:00.5]} 6... Bc5 {[%clk
0:02:58.2]} 7. Bd3 {[%clk 0:03:00.5]} 7... f5 {[%clk 0:02:56.1]} 8. Qe2 {[%clk
0:02:56.6]} 8... O-O {[%clk 0:02:55.5]} 9. Bxe4 {[%clk 0:02:56.8]} 9... fxe4
{[%clk 0:02:56.4]} 10. Ne5 {[%clk 0:02:56.7]} 10... Qxd5 {[%clk 0:02:33.4]} 11.
Nc3 {[%clk 0:02:56.2]} 11... Qd4 {[%clk 0:02:34]} 12. Nxe4 {[%clk 0:02:53.2]}
12... Bb6 {[%clk 0:02:29.6]} 13. c3 {[%clk 0:02:47.1]} 13... Qd5 {[%clk
0:02:19.7]} 14. Ng5 {[%clk 0:02:37.7]} 14... Bf5 {[%clk 0:02:13.5]} 15. c4
{[%clk 0:02:12.6]} 15... Qc5 {[%clk 0:01:50.8]} 16. g4 {[%clk 0:01:58.8]} 16...
Nc6 {[%clk 0:01:09]} 17. gxf5 {[%clk 0:01:54.8]} 17... Nxe5 {[%clk 0:01:09.1]}
18. fxe5 {[%clk 0:01:48.2]} 18... Rxf5 {[%clk 0:01:07.8]} 19. Nf3 {[%clk
0:01:46.9]} 19... Re8 {[%clk 0:00:55]} 20. Kd1 {[%clk 0:01:40.5]} 20... Ref8
{[%clk 0:00:48.5]} 21. Nd2 {[%clk 0:01:34.3]} 21... Rf2 {[%clk 0:00:46.2]} 22.
Qd3 {[%clk 0:01:33.1]} 22... Qe7 {[%clk 0:00:25.6]} 23. Re1 {[%clk 0:01:14.2]}
23... Rd8 {[%clk 0:00:25.9]} 24. Qc3 {[%clk 0:01:09.9]} 24... Qh4 {[%clk
0:00:19.1]} 25. e6 {[%clk 0:01:03.4]} 25... Bd4 {[%clk 0:00:18.2]} 26. Qg3
{[%clk 0:00:56.4]} 26... Qh5+ {[%clk 0:00:17.3]} 27. Kc2 {[%clk 0:00:55.8]}
27... Qf5+ {[%clk 0:00:17.1]} 28. Kb3 {[%clk 0:00:51]} 28... Bf6 {[%clk
0:00:17.3]} 29. e7 {[%clk 0:00:40]} 29... Rd3+ {[%clk 0:00:17.1]} 30. Ka4 {[%clk
0:00:37.7]} 30... Bxe7 {[%clk 0:00:09.3]} 31. Qe5 {[%clk 0:00:37.8]} 31... Qd7+
{[%clk 0:00:08.6]} 32. Qb5 {[%clk 0:00:37.7]} 32... c6 {[%clk 0:00:08.9]} 33.
Qe5 {[%clk 0:00:29.2]} 33... b5+ {[%clk 0:00:09.3]} 34. Ka5 {[%clk 0:00:23]}
34... Qd8+ {[%clk 0:00:08.2]} 35. Ka6 {[%clk 0:00:22.4]} 35... Qb6# {[%clk
0:00:08.2]} 0-1

[Event "*** Titled Tuesday Blitz"]
[Site "Chess.com"]
[Date "2021.02.16"]
[Round "4"]
[White "onetowin"]
[Black "Michaelson_11"]
[Result "0-1"]
[WhiteElo "2007"]
[BlackElo "2263"]
[TimeControl "180+1"]
[EndTime "10:41:44 PST"]
[Termination "Michaelson_11 won by resignation"]

1. d4 {[%clk 0:03:00.9]} 1... Nf6 {[%clk 0:02:58.8]} 2. Nf3 {[%clk 0:03:00.9]}
2... g6 {[%clk 0:02:56.5]} 3. g3 {[%clk 0:03:01]} 3... Bg7 {[%clk 0:02:56.8]} 4.
Bg2 {[%clk 0:03:01.2]} 4... d6 {[%clk 0:02:57.7]} 5. O-O {[%clk 0:03:01.6]} 5...
O-O {[%clk 0:02:58]} 6. c4 {[%clk 0:03:02.2]} 6... c6 {[%clk 0:02:55.4]} 7. Nc3
{[%clk 0:03:02.2]} 7... Qb6 {[%clk 0:02:55.5]} 8. e4 {[%clk 0:02:59.8]} 8... Bg4
{[%clk 0:02:54.7]} 9. h3 {[%clk 0:02:47.7]} 9... Bxf3 {[%clk 0:02:53.1]} 10.
Bxf3 {[%clk 0:02:47.7]} 10... Nfd7 {[%clk 0:02:54]} 11. Be3 {[%clk 0:02:24.8]}
11... Qxb2 {[%clk 0:02:52]} 12. Na4 {[%clk 0:02:22.4]} 12... Qa3 {[%clk
0:02:45.7]} 13. Bc1 {[%clk 0:02:01.3]} 13... Qb4 {[%clk 0:02:36.4]} 14. Rb1
{[%clk 0:01:41.1]} 14... Qxc4 {[%clk 0:02:33.8]} 15. Rxb7 {[%clk 0:01:32.5]}
15... Qxd4 {[%clk 0:01:57.7]} 16. Qb3 {[%clk 0:01:30.7]} 16... Ne5 {[%clk
0:01:43.3]} 17. Bg2 {[%clk 0:01:16.7]} 17... Na6 {[%clk 0:01:07.1]} 18. Be3
{[%clk 0:01:11.2]} 18... Qc4 {[%clk 0:00:46.1]} 19. Rxe7 {[%clk 0:01:00]} 19...
Qxb3 {[%clk 0:00:40]} 20. axb3 {[%clk 0:01:00.9]} 20... Rab8 {[%clk 0:00:32.9]}
21. f4 {[%clk 0:00:54.5]} 21... Nd3 {[%clk 0:00:22.4]} 22. Rd1 {[%clk
0:00:54.4]} 22... Rxb3 {[%clk 0:00:21.3]} 23. Rxa7 {[%clk 0:00:45.8]} 23... Nab4
{[%clk 0:00:20.2]} 24. Bf1 {[%clk 0:00:32.2]} 24... Nc2 {[%clk 0:00:11.7]} 25.
Rxd3 {[%clk 0:00:23.8]} 25... Rxd3 {[%clk 0:00:11.6]} 26. Bxd3 {[%clk
0:00:23.6]} 26... Nxe3 {[%clk 0:00:12.5]} 27. Kf2 {[%clk 0:00:20.3]} 27... Bd4
{[%clk 0:00:12.4]} 28. Ke2 {[%clk 0:00:19.3]} 28... Bxa7 {[%clk 0:00:11.7]} 29.
Nc3 {[%clk 0:00:18]} 29... Bd4 {[%clk 0:00:11]} 30. Na4 {[%clk 0:00:16.7]} 30...
Ra8 {[%clk 0:00:10.9]} 0-1

[Event "*** Titled Tuesday Blitz"]
[Site "Chess.com"]
[Date "2021.02.16"]
[Round "4"]
[White "stoleriu"]
[Black "igorcadilhac"]
[Result "1-0"]
[WhiteElo "2609"]
[BlackElo "2339"]
[TimeControl "180+1"]
[EndTime "10:41:45 PST"]
[Termination "stoleriu won by resignation"]

1. e4 {[%clk 0:03:00.9]} 1... e5 {[%clk 0:02:59.8]} 2. Nf3 {[%clk 0:03:00.5]}
2... Nf6 {[%clk 0:03:00.5]} 3. Nxe5 {[%clk 0:02:59.9]} 3... d6 {[%clk
0:03:01.1]} 4. Nf3 {[%clk 0:03:00.1]} 4... Nxe4 {[%clk 0:03:01.7]} 5. c4 {[%clk
0:03:00.7]} 5... d5 {[%clk 0:02:58.3]} 6. Nc3 {[%clk 0:03:01.2]} 6... Nxc3
{[%clk 0:02:53.4]} 7. dxc3 {[%clk 0:03:02.1]} 7... Be6 {[%clk 0:02:25.6]} 8. Nd4
{[%clk 0:03:00.6]} 8... Qd7 {[%clk 0:02:18.1]} 9. Nxe6 {[%clk 0:02:46.4]} 9...
Qxe6+ {[%clk 0:02:16.8]} 10. Be3 {[%clk 0:02:47]} 10... dxc4 {[%clk 0:02:06.3]}
11. Qa4+ {[%clk 0:02:45.7]} 11... Qc6 {[%clk 0:02:02.1]} 12. Qxc4 {[%clk
0:02:41]} 12... Bd6 {[%clk 0:01:58.4]} 13. Qb3 {[%clk 0:02:36.3]} 13... O-O
{[%clk 0:01:55]} 14. O-O-O {[%clk 0:02:34.1]} 14... Na6 {[%clk 0:01:31.2]} 15.
Bb5 {[%clk 0:01:41.7]} 15... Qe4 {[%clk 0:01:29.9]} 16. Bd3 {[%clk 0:01:34.1]}
16... Qh4 {[%clk 0:01:29.1]} 17. Qxb7 {[%clk 0:01:26.5]} 17... Nc5 {[%clk
0:01:23.5]} 18. Qc6 {[%clk 0:01:21.9]} 18... Nxd3+ {[%clk 0:00:47.2]} 19. Rxd3
{[%clk 0:01:22.8]} 19... a5 {[%clk 0:00:45.3]} 20. g3 {[%clk 0:01:01.8]} 20...
Qh5 {[%clk 0:00:44]} 21. h4 {[%clk 0:01:00.6]} 21... a4 {[%clk 0:00:42.3]} 22.
a3 {[%clk 0:00:59.1]} 22... Rab8 {[%clk 0:00:38.1]} 23. Qxa4 {[%clk 0:00:55]}
23... Qe2 {[%clk 0:00:22.5]} 24. Qc2 {[%clk 0:00:53.8]} 24... Qf3 {[%clk
0:00:22.7]} 25. Rhd1 {[%clk 0:00:51.7]} 25... Qa8 {[%clk 0:00:22]} 26. a4 {[%clk
0:00:30.2]} 26... Qa5 {[%clk 0:00:07.2]} 27. Rd5 {[%clk 0:00:27.7]} 27... Qa6
{[%clk 0:00:07.5]} 28. Bc5 {[%clk 0:00:24.7]} 28... Bxc5 {[%clk 0:00:04.7]} 29.
Rxc5 {[%clk 0:00:25.6]} 29... Qb6 {[%clk 0:00:03.3]} 30. Rb5 {[%clk 0:00:24.5]}
30... Qa6 {[%clk 0:00:03.4]} 31. Rxb8 {[%clk 0:00:24.2]} 31... Rxb8 {[%clk
0:00:04.3]} 32. Qd3 {[%clk 0:00:24.6]} 32... g6 {[%clk 0:00:04.1]} 33. Qxa6
{[%clk 0:00:24.4]} 1-0

[Event "*** Titled Tuesday Blitz"]
[Site "Chess.com"]
[Date "2021.02.16"]
[Round "4"]
[White "guillembaches"]
[Black "Cecile-Haussernot"]
[Result "1-0"]
[WhiteElo "2468"]
[BlackElo "2313"]
[TimeControl "180+1"]
[EndTime "10:41:45 PST"]
[Termination "guillembaches won by checkmate"]

1. e4 {[%clk 0:03:00.9]} 1... c5 {[%clk 0:02:59.9]} 2. Nf3 {[%clk 0:03:01]} 2...
d6 {[%clk 0:02:59]} 3. d4 {[%clk 0:02:59.8]} 3... cxd4 {[%clk 0:02:59.9]} 4.
Nxd4 {[%clk 0:03:00.4]} 4... Nf6 {[%clk 0:03:00.4]} 5. Nc3 {[%clk 0:03:00.8]}
5... a6 {[%clk 0:03:00.5]} 6. Be2 {[%clk 0:03:01.3]} 6... e5 {[%clk 0:03:00.3]}
7. Nf3 {[%clk 0:03:01.6]} 7... Be7 {[%clk 0:02:58.6]} 8. Bg5 {[%clk 0:03:01.8]}
8... Be6 {[%clk 0:02:51.2]} 9. Bxf6 {[%clk 0:03:02.1]} 9... Bxf6 {[%clk
0:02:49.2]} 10. Nd5 {[%clk 0:03:02.6]} 10... Nc6 {[%clk 0:02:44]} 11. c3 {[%clk
0:03:00.6]} 11... Bxd5 {[%clk 0:02:38.7]} 12. Qxd5 {[%clk 0:03:00.3]} 12... O-O
{[%clk 0:02:37.5]} 13. Rd1 {[%clk 0:02:55.7]} 13... Be7 {[%clk 0:02:37.2]} 14.
O-O {[%clk 0:02:55]} 14... Qb6 {[%clk 0:02:36.6]} 15. Qb3 {[%clk 0:02:54]} 15...
Qxb3 {[%clk 0:02:31.9]} 16. axb3 {[%clk 0:02:54.1]} 16... b5 {[%clk 0:02:31.8]}
17. Ra1 {[%clk 0:02:41.2]} 17... Rfb8 {[%clk 0:02:18.4]} 18. Rfd1 {[%clk
0:02:39.7]} 18... Rb6 {[%clk 0:02:14.5]} 19. Rd5 {[%clk 0:02:34.5]} 19... Rab8
{[%clk 0:02:09.4]} 20. Ne1 {[%clk 0:02:28.4]} 20... Kf8 {[%clk 0:01:21.9]} 21.
Nc2 {[%clk 0:02:26.4]} 21... Ke8 {[%clk 0:01:21]} 22. Bg4 {[%clk 0:02:21.9]}
22... a5 {[%clk 0:01:08]} 23. g3 {[%clk 0:02:18.1]} 23... g6 {[%clk 0:01:03.9]}
24. h4 {[%clk 0:02:16.8]} 24... h5 {[%clk 0:01:03.1]} 25. Bh3 {[%clk 0:02:16.9]}
25... Kd8 {[%clk 0:01:03.5]} 26. Kf1 {[%clk 0:02:12.6]} 26... Kc7 {[%clk
0:00:53.7]} 27. Ke2 {[%clk 0:02:12.3]} 27... b4 {[%clk 0:00:49.9]} 28. c4 {[%clk
0:02:09.1]} 28... Bf8 {[%clk 0:00:46.5]} 29. f4 {[%clk 0:01:57.8]} 29... Bg7
{[%clk 0:00:45.1]} 30. f5 {[%clk 0:01:53.4]} 30... Rf8 {[%clk 0:00:34.4]} 31.
Rf1 {[%clk 0:01:44.3]} 31... Rbb8 {[%clk 0:00:26.3]} 32. Rdd1 {[%clk 0:01:38.8]}
32... Nd4+ {[%clk 0:00:23]} 33. Nxd4 {[%clk 0:01:37.2]} 33... exd4 {[%clk
0:00:23.9]} 34. f6 {[%clk 0:01:35.7]} 34... Bh8 {[%clk 0:00:18]} 35. Rxd4 {[%clk
0:01:35.8]} 35... Rfe8 {[%clk 0:00:18.6]} 36. Kd3 {[%clk 0:01:31.3]} 36... Re5
{[%clk 0:00:17.5]} 37. Rd5 {[%clk 0:01:23.3]} 37... Rbe8 {[%clk 0:00:17]} 38.
Bg2 {[%clk 0:01:17]} 38... R5e6 {[%clk 0:00:16.3]} 39. Rxa5 {[%clk 0:01:15.6]}
39... Bxf6 {[%clk 0:00:16.7]} 40. Ra7+ {[%clk 0:01:14.9]} 40... Kb8 {[%clk
0:00:10.4]} 41. Rxf7 {[%clk 0:01:11.4]} 41... Bxb2 {[%clk 0:00:10.7]} 42. e5
{[%clk 0:01:09.6]} 42... dxe5 {[%clk 0:00:08]} 43. Rb7+ {[%clk 0:01:09]} 43...
Kc8 {[%clk 0:00:08.5]} 44. Rff7 {[%clk 0:01:08.8]} 44... e4+ {[%clk 0:00:08.9]}
45. Ke2 {[%clk 0:01:08.8]} 45... Be5 {[%clk 0:00:08.4]} 46. Bh3 {[%clk
0:01:06.9]} 46... Bd6 {[%clk 0:00:05]} 47. Ra7 {[%clk 0:00:59.8]} 47... Bc5
{[%clk 0:00:02.7]} 48. Bxe6+ {[%clk 0:00:58.5]} 48... Rxe6 {[%clk 0:00:03.6]}
49. Ra8# {[%clk 0:00:58.8]} 1-0

[Event "*** Titled Tuesday Blitz"]
[Site "Chess.com"]
[Date "2021.02.16"]
[Round "4"]
[White "Kurkusha"]
[Black "fyall777"]
[Result "0-1"]
[WhiteElo "2353"]
[BlackElo "2512"]
[TimeControl "180+1"]
[EndTime "10:41:47 PST"]
[Termination "fyall777 won on time"]

1. d4 {[%clk 0:02:52.5]} 1... Nf6 {[%clk 0:02:59.4]} 2. Nf3 {[%clk 0:02:52.6]}
2... e6 {[%clk 0:02:59.5]} 3. c4 {[%clk 0:02:52.5]} 3... b6 {[%clk 0:02:59.5]}
4. Nc3 {[%clk 0:02:52.6]} 4... Bb7 {[%clk 0:02:59.8]} 5. g3 {[%clk 0:02:52.9]}
5... Bb4 {[%clk 0:02:59.7]} 6. Bg2 {[%clk 0:02:52.4]} 6... O-O {[%clk
0:02:58.4]} 7. O-O {[%clk 0:02:52.4]} 7... Bxc3 {[%clk 0:02:53.8]} 8. bxc3
{[%clk 0:02:52.1]} 8... d6 {[%clk 0:02:54.1]} 9. Qc2 {[%clk 0:02:51.5]} 9... Be4
{[%clk 0:02:42.1]} 10. Qb2 {[%clk 0:02:49.7]} 10... Nbd7 {[%clk 0:02:38.8]} 11.
Bf4 {[%clk 0:02:30.8]} 11... Qc8 {[%clk 0:02:34.7]} 12. Nd2 {[%clk 0:02:24.9]}
12... Bxg2 {[%clk 0:02:27.7]} 13. Kxg2 {[%clk 0:02:25.8]} 13... Qb7+ {[%clk
0:02:25.6]} 14. f3 {[%clk 0:02:25.5]} 14... e5 {[%clk 0:02:25.1]} 15. Bg5 {[%clk
0:02:16.9]} 15... e4 {[%clk 0:02:23.7]} 16. d5 {[%clk 0:01:58.5]} 16... Rfe8
{[%clk 0:02:18.4]} 17. Rae1 {[%clk 0:01:17.7]} 17... h6 {[%clk 0:02:17.4]} 18.
Bxf6 {[%clk 0:01:14.8]} 18... Nxf6 {[%clk 0:02:16.4]} 19. Qb1 {[%clk 0:01:11.9]}
19... e3 {[%clk 0:01:49.7]} 20. Ne4 {[%clk 0:01:07.7]} 20... Nxe4 {[%clk
0:01:48.1]} 21. fxe4 {[%clk 0:01:08.6]} 21... Re7 {[%clk 0:01:38.5]} 22. Rf3
{[%clk 0:01:00.3]} 22... Rae8 {[%clk 0:01:38]} 23. Ref1 {[%clk 0:00:45.1]} 23...
f6 {[%clk 0:01:34]} 24. Rxe3 {[%clk 0:00:43.9]} 24... Qa6 {[%clk 0:01:30.3]} 25.
Qd3 {[%clk 0:00:24.4]} 25... Qxa2 {[%clk 0:01:29.1]} 26. Rf4 {[%clk 0:00:23.6]}
26... Re5 {[%clk 0:01:27.8]} 27. Rg4 {[%clk 0:00:22.4]} 27... a5 {[%clk
0:01:26.4]} 28. Rf3 {[%clk 0:00:21.7]} 28... Kh7 {[%clk 0:01:17.3]} 29. Rf1
{[%clk 0:00:14.5]} 29... a4 {[%clk 0:01:11]} 30. Rgf4 {[%clk 0:00:14.5]} 30...
a3 {[%clk 0:01:04.2]} 31. Rb1 {[%clk 0:00:13.3]} 31... Kg8 {[%clk 0:00:59.8]}
32. Kf3 {[%clk 0:00:13]} 32... f5 {[%clk 0:00:57.2]} 33. Rxf5 {[%clk 0:00:12.1]}
33... Rxe4 {[%clk 0:00:57.3]} 34. Rf1 {[%clk 0:00:01.9]} 34... Re3+ {[%clk
0:00:53]} 35. Qxe3 {[%clk 0:00:01.8]} 35... Rxe3+ {[%clk 0:00:53.1]} 36. Kxe3
{[%clk 0:00:02.7]} 36... Qxc4 {[%clk 0:00:53.4]} 37. Rf8+ {[%clk 0:00:02.7]}
37... Kh7 {[%clk 0:00:52.3]} 38. Ra8 {[%clk 0:00:03.3]} 38... Qxc3+ {[%clk
0:00:50.3]} 39. Ke4 {[%clk 0:00:02.1]} 39... Qb2 {[%clk 0:00:48.9]} 40. Rff8
{[%clk 0:00:01.8]} 40... Qxe2+ {[%clk 0:00:46.9]} 41. Kf5 {[%clk 0:00:01.1]}
41... Qe5+ {[%clk 0:00:45.5]} 42. Kg4 {[%clk 0:00:01.2]} 42... Qxd5 {[%clk
0:00:45.7]} 0-1

[Event "*** Titled Tuesday Blitz"]
[Site "Chess.com"]
[Date "2021.02.16"]
[Round "4"]
[White "Jospem"]
[Black "crazy_but_lazy"]
[Result "1-0"]
[WhiteElo "3008"]
[BlackElo "2504"]
[TimeControl "180+1"]
[EndTime "10:41:50 PST"]
[Termination "Jospem won on time"]

1. e4 {[%clk 0:03:00.9]} 1... c5 {[%clk 0:03:00.1]} 2. Nf3 {[%clk 0:03:00.9]}
2... d6 {[%clk 0:03:00.4]} 3. c3 {[%clk 0:03:01.4]} 3... Nf6 {[%clk 0:02:55.6]}
4. h3 {[%clk 0:03:01.7]} 4... e6 {[%clk 0:02:52.6]} 5. Bd3 {[%clk 0:03:01.6]}
5... Be7 {[%clk 0:02:51.5]} 6. Bc2 {[%clk 0:03:01.8]} 6... a6 {[%clk 0:02:51.9]}
7. d4 {[%clk 0:03:01.9]} 7... b6 {[%clk 0:02:18.3]} 8. e5 {[%clk 0:03:00.8]}
8... dxe5 {[%clk 0:02:15.8]} 9. dxe5 {[%clk 0:02:51.3]} 9... Qxd1+ {[%clk
0:02:15.3]} 10. Kxd1 {[%clk 0:02:49.6]} 10... Nd5 {[%clk 0:02:15]} 11. Nbd2
{[%clk 0:02:46.7]} 11... Bb7 {[%clk 0:02:08.6]} 12. Ne4 {[%clk 0:02:45.9]} 12...
Nd7 {[%clk 0:02:01.5]} 13. Ke2 {[%clk 0:02:44]} 13... O-O-O {[%clk 0:01:59.4]}
14. Rd1 {[%clk 0:02:23.4]} 14... f5 {[%clk 0:01:58.6]} 15. Neg5 {[%clk 0:02:20]}
15... Bxg5 {[%clk 0:01:39.5]} 16. Bxg5 {[%clk 0:02:07.1]} 16... Rde8 {[%clk
0:01:33.6]} 17. h4 {[%clk 0:02:03.3]} 17... h6 {[%clk 0:01:32.8]} 18. Bd2 {[%clk
0:02:01.5]} 18... g5 {[%clk 0:01:05.2]} 19. hxg5 {[%clk 0:01:57.6]} 19... hxg5
{[%clk 0:01:05.7]} 20. Bxg5 {[%clk 0:01:39.6]} 20... Rhg8 {[%clk 0:01:03.5]} 21.
Bd2 {[%clk 0:01:34]} 21... Rxg2 {[%clk 0:01:02.3]} 22. Rg1 {[%clk 0:01:34.2]}
22... Reg8 {[%clk 0:00:56.7]} 23. Rxg2 {[%clk 0:01:29.2]} 23... Rxg2 {[%clk
0:00:57.6]} 24. Rh1 {[%clk 0:01:27.5]} 24... Rg6 {[%clk 0:00:24]} 25. Rh8+
{[%clk 0:01:23.8]} 25... Kc7 {[%clk 0:00:24.1]} 26. Rh7 {[%clk 0:01:23.5]} 26...
Bc6 {[%clk 0:00:17.1]} 27. c4 {[%clk 0:01:12.8]} 27... Nb4 {[%clk 0:00:17.1]}
28. Bxb4 {[%clk 0:01:12.7]} 28... cxb4 {[%clk 0:00:17.9]} 29. Nd4 {[%clk
0:01:12.9]} 29... Be4 {[%clk 0:00:09]} 30. Bxe4 {[%clk 0:01:02.6]} 30... fxe4
{[%clk 0:00:09.9]} 31. Ke3 {[%clk 0:01:03.5]} 31... Kd8 {[%clk 0:00:10.5]} 32.
Kxe4 {[%clk 0:01:01.5]} 32... Nc5+ {[%clk 0:00:05.6]} 33. Ke3 {[%clk 0:01:01.6]}
33... Rg1 {[%clk 0:00:04.5]} 34. Nc6+ {[%clk 0:01:00.4]} 34... Ke8 {[%clk
0:00:04.4]} 35. Nxb4 {[%clk 0:00:41.1]} 35... Re1+ {[%clk 0:00:04.8]} 36. Kd2
{[%clk 0:00:41.5]} 36... Rxe5 {[%clk 0:00:04.6]} 37. Ra7 {[%clk 0:00:41.7]}
37... Rf5 {[%clk 0:00:03.6]} 38. Ke2 {[%clk 0:00:41.6]} 38... Re5+ {[%clk
0:00:03.9]} 39. Kf1 {[%clk 0:00:40.1]} 39... a5 {[%clk 0:00:03.1]} 40. Na6
{[%clk 0:00:35.7]} 1-0